fUSD/lending_fUSD_20250103
["ID","MTS","AMOUNT","RATE_DAILY","PERIOD"]
[347522070,1735901433051,-151.14,8.904e-05,2]
[347522071,1735901433060,-151.45,8.904e-05,2]
[347522072,1735901433070,-150.0,8.904e-05,2]
[347522073,1735901433079,-182.83,8.904e-05,2]
[347522074,1735901433088,-436.86,8.904e-05,2]
[347522075,1735901433098,-978.95,8.904e-05,2]
[347522076,1735901433107,-182.83,8.904e-05,2]
[347522077,1735901433117,-150.0,8.904e-05,2]
[347522078,1735901433126,-150.0,8.904e-05,2]
[347522079,1735901433136,-436.86,8.904e-05,2]
[347522080,1735901433145,-150.0,8.904e-05,2]
[347522081,1735901433154,-150.0,8.904e-05,2]
[347522082,1735901433164,-978.95,8.904e-05,2]
[347522083,1735901433174,-181.86,8.904e-05,2]
[347522084,1735901433183,-150.0,8.904e-05,2]
[347522085,1735901433192,-150.0,8.904e-05,2]
[347522086,1735901433202,-436.86,8.904e-05,2]
[347522087,1735901433211,-150.0,8.904e-05,2]
[347522088,1735901433220,-150.0,8.904e-05,2]
[347522089,1735901433230,-436.86,8.904e-05,2]
[347522090,1735901433239,-978.95,8.904e-05,2]
[347522091,1735901433248,-978.95,8.904e-05,2]
[347522092,1735901433258,-436.86,8.904e-05,2]
[347522093,1735901433267,-150.0,8.904e-05,2]
[347522094,1735901433277,-150.0,8.951e-05,2]
[347522095,1735901433286,-822.0,8.988e-05,2]
[347522096,1735901433295,-5847.28,8.988e-05,2]
[347522097,1735901433304,-9611.92,8.988e-05,2]
[347522098,1735901433314,-4830.95,8.988e-05,2]
[347522099,1735901433323,-5497.63,8.988e-05,2]
[347522100,1735901433332,-1404.11,8.988e-05,2]
[347522101,1735901433341,-2112.51,8.988e-05,2]
[347522102,1735901433350,-9713.87,8.988e-05,2]
[347522103,1735901433359,-1759.32,8.988e-05,2]
[347522104,1735901433369,-1011.04,8.988e-05,2]
[347522105,1735901433378,-2609.81,8.988e-05,2]
[347522106,1735901433388,-500.0,8.988e-05,2]
[347522107,1735901433397,-4934.39,8.988e-05,2]
[347522108,1735901433406,-500.0,8.989e-05,2]
[347522109,1735901433416,-500.0,8.989e-05,2]
[347522110,1735901433425,-500.0,8.989e-05,2]
[347522111,1735901433435,-571.4,8.989e-05,2]
[347522112,1735901433444,-500.0,8.989e-05,2]
[347522113,1735901433454,-843.13,8.989e-05,2]
[347522114,1735901433463,-500.0,8.989e-05,2]
[347522115,1735901433472,-500.0,8.989e-05,2]
[347522116,1735901433481,-500.0,8.989e-05,2]
[347522117,1735901433491,-500.0,8.989e-05,2]
[347522118,1735901433500,-500.0,8.989e-05,2]
[347522119,1735901433509,-738.07,8.989e-05,2]
[347522120,1735901433519,-500.0,8.989e-05,2]
[347522121,1735901433528,-500.0,8.989e-05,2]
[347522122,1735901433538,-500.0,8.989e-05,2]
[347522123,1735901433547,-500.0,8.989e-05,2]
[347522124,1735901433556,-500.0,8.989e-05,2]
[347522125,1735901433565,-799.78,8.989e-05,2]
[347522126,1735901433577,-500.0,8.989e-05,2]
[347522127,1735901433587,-500.0,8.989e-05,2]
[347522128,1735901433596,-500.0,8.989e-05,2]
[347522129,1735901433605,-500.0,8.989e-05,2]
[347522130,1735901433615,-500.0,8.989e-05,2]
[347522131,1735901433624,-2219.83,8.989e-05,2]
[347522132,1735901433634,-500.0,8.989e-05,2]
[347522133,1735901433643,-500.0,8.989e-05,2]
[347522134,1735901433652,-500.0,8.989e-05,2]
[347522135,1735901433662,-500.0,8.989e-05,2]
[347522136,1735901433671,-500.0,8.989e-05,2]
[347522137,1735901433680,-500.0,8.989e-05,2]
[347522138,1735901433690,-527.51,8.989e-05,2]
[347522139,1735901433699,-500.0,8.989e-05,2]
[347522140,1735901433709,-957.13,8.989e-05,2]
[347522141,1735901433718,-500.0,8.989e-05,2]
[347522142,1735901433727,-1339.17,8.989e-05,2]
[347522143,1735901433737,-500.0,8.989e-05,2]
[347522144,1735901433746,-817.3,8.989e-05,2]
[347522145,1735901433756,-500.0,8.989e-05,2]
[347522146,1735901433766,-500.0,8.989e-05,2]
[347522147,1735901433775,-5215.94,8.989e-05,2]
[347522148,1735901433784,-500.0,8.989e-05,2]
[347522149,1735901433793,-378.18523741,8.989e-05,2]
[347522155,1735901438037,-2127.34,8.988e-05,2]
[347522157,1735901438046,-42.82359181,8.988e-05,2]
[347522159,1735901438057,-1638.37640819,8.988e-05,2]
[347522161,1735901438066,-528.18476259,8.989e-05,2]
[347522163,1735901438075,-152.9889277,8.989e-05,2]
[347522165,1735901438086,-520.0910723,8.989e-05,2]
[347522166,1735901438095,-500.0,8.989e-05,2]
[347522167,1735901438103,-500.0,8.989e-05,2]
[347522168,1735901438115,-967.61,8.989e-05,2]
[347522169,1735901438125,-500.0,8.989e-05,2]
[347522170,1735901438133,-500.0,8.989e-05,2]
[347522171,1735901438142,-500.0,8.989e-05,2]
[347522172,1735901438151,-500.0,8.989e-05,2]
[347522173,1735901438161,-500.0,8.989e-05,2]
[347522174,1735901438171,-500.0,8.989e-05,2]
[347522175,1735901438180,-500.0,8.989e-05,2]
[347522176,1735901438189,-500.0,8.989e-05,2]
[347522177,1735901438199,-500.0,8.989e-05,2]
[347522178,1735901438208,-1505.75,8.989e-05,2]
[347522179,1735901438217,-500.0,8.989e-05,2]
[347522180,1735901438226,-500.0,8.989e-05,2]
[347522181,1735901438235,-500.0,8.989e-05,2]
[347522182,1735901438245,-500.0,8.989e-05,2]
[347522183,1735901438254,-6430.23,8.989e-05,2]
[347522184,1735901438263,-500.0,8.989e-05,2]
[347522185,1735901438272,-500.0,8.989e-05,2]
[347522186,1735901438282,-500.0,8.989e-05,2]
[347522187,1735901438291,-500.0,8.989e-05,2]
[347522188,1735901438301,-500.0,8.989e-05,2]
[347522189,1735901438311,-500.0,8.989e-05,2]
[347522190,1735901438320,-1102.19,8.989e-05,2]
[347522191,1735901438330,-500.0,8.989e-05,2]
[347522192,1735901438338,-1090.21,8.989e-05,2]
[347522193,1735901438347,-500.0,8.989e-05,2]
[347522194,1735901438358,-600.85,8.989e-05,2]
[347522195,1735901438368,-1042.92,8.989e-05,2]
[347522196,1735901438377,-6292.53,8.989e-05,2]
[347522197,1735901438387,-500.0,8.989e-05,2]
[347522198,1735901438395,-500.0,8.989e-05,2]
[347522199,1735901438404,-500.0,8.989e-05,2]
[347522200,1735901438413,-12480.39,8.989e-05,2]
[347522201,1735901438423,-500.0,8.989e-05,2]
[347522202,1735901438432,-500.0,8.989e-05,2]
[347522203,1735901438441,-500.0,8.989e-05,2]
[347522204,1735901438451,-500.0,8.989e-05,2]
[347522205,1735901438460,-500.0,8.989e-05,2]
[347522206,1735901438470,-500.0,8.989e-05,2]
[347522207,1735901438479,-500.0,8.989e-05,2]
[347522208,1735901438488,-500.0,8.989e-05,2]
[347522209,1735901438497,-500.0,8.989e-05,2]
[347522210,1735901438506,-500.0,8.989e-05,2]
[347522211,1735901438515,-500.0,8.989e-05,2]
[347522212,1735901438524,-500.0,8.989e-05,2]
[347522213,1735901438534,-500.0,8.989e-05,2]
[347522214,1735901438545,-1946.48,8.989e-05,2]
[347522215,1735901438554,-500.0,8.989e-05,2]
[347522216,1735901438565,-500.0,8.989e-05,2]
[347522217,1735901438575,-500.0,8.989e-05,2]
[347522218,1735901438587,-500.0,8.989e-05,2]
[347522219,1735901438598,-500.0,8.989e-05,2]
[347522220,1735901438607,-500.0,8.989e-05,2]
[347522221,1735901438619,-500.0,8.989e-05,2]
[347522222,1735901438629,-500.0,8.989e-05,2]
[347522223,1735901438638,-500.0,8.989e-05,2]
[347522224,1735901438648,-707.87,8.989e-05,2]
[347522225,1735901438658,-2650.15,8.989e-05,2]
[347522226,1735901438668,-714.57,8.989e-05,2]
[347522227,1735901438677,-500.0,8.989e-05,2]
[347522228,1735901438687,-1163.89,8.989e-05,2]
[347522229,1735901438696,-500.0,8.989e-05,2]
[347522230,1735901438706,-796.71,8.989e-05,2]
[347522231,1735901438715,-593.83,8.989e-05,2]
[347522232,1735901438725,-1394.63,8.989e-05,2]
[347522233,1735901438734,-500.0,8.989e-05,2]
[347522234,1735901438743,-562.27,8.989e-05,2]
[347522235,1735901438752,-500.0,8.989e-05,2]
[347522236,1735901438762,-480.38089633,8.989e-05,2]
[347522237,1735901438771,-1067.47,8.989e-05,2]
[347522238,1735901438781,-4330.54,8.989e-05,2]
[347522239,1735901438791,-500.0,8.989e-05,2]
[347522240,1735901438800,-500.0,8.989e-05,2]
[347522241,1735901438810,-500.0,8.989e-05,2]
[347522242,1735901438819,-500.0,8.989e-05,2]
[347522243,1735901438828,-500.0,8.989e-05,2]
[347522244,1735901438837,-500.0,8.989e-05,2]
[347522245,1735901438846,-500.0,8.989e-05,2]
[347522246,1735901438855,-500.0,8.989e-05,2]
[347522247,1735901438866,-9125.98,8.989e-05,2]
[347522248,1735901438875,-500.0,8.989e-05,2]
[347522249,1735901438884,-500.0,8.989e-05,2]
[347522250,1735901438894,-500.0,8.989e-05,2]
[347522251,1735901438903,-4184.48,8.989e-05,2]
[347522252,1735901438912,-500.0,8.989e-05,2]
[347522253,1735901438921,-500.0,8.989e-05,2]
[347522254,1735901438930,-591.62,8.989e-05,2]
[347522255,1735901438939,-500.0,8.989e-05,2]
[347522256,1735901438949,-9537.21,8.989e-05,2]
[347522257,1735901438958,-500.0,8.989e-05,2]
[347522258,1735901438967,-3970.88,8.989e-05,2]
[347522259,1735901438977,-500.0,8.989e-05,2]
[347522260,1735901438987,-656.45,8.989e-05,2]
[347522261,1735901438996,-604.86,8.989e-05,2]
[347522262,1735901439005,-2057.65,8.989e-05,2]
[347522263,1735901439016,-500.0,8.989e-05,2]
[347522264,1735901439025,-1181.7,8.989e-05,2]
[347522265,1735901439034,-500.0,8.989e-05,2]
[347522266,1735901439043,-735.0,8.989e-05,2]
[347522267,1735901439052,-588.3,8.989e-05,2]
[347522268,1735901439061,-5664.2,8.989e-05,2]
[347522269,1735901439070,-500.0,8.989e-05,2]
[347522270,1735901439079,-5004.92,8.989e-05,2]
[347522271,1735901439089,-500.0,8.989e-05,2]
[347522272,1735901439098,-500.0,8.989e-05,2]
[347522273,1735901439107,-500.0,8.989e-05,2]
[347522274,1735901439118,-725.79,8.989e-05,2]
[347522275,1735901439128,-5897.71,8.989e-05,2]
[347522276,1735901439137,-500.0,8.989e-05,2]
[347522277,1735901439146,-500.0,8.989e-05,2]
[347522278,1735901439155,-3272.98,8.989e-05,2]
[347522279,1735901439165,-567.29,8.989e-05,2]
[347522280,1735901439174,-656.88,8.99e-05,2]
[347522281,1735901439183,-1462.55,8.99e-05,2]
[347522282,1735901439193,-544.73,8.99e-05,2]
[347522283,1735901439203,-520.3,8.99e-05,2]
[347522284,1735901439212,-1334.54,8.99e-05,2]
[347522285,1735901439221,-869.27,8.99e-05,2]
[347522286,1735901439230,-500.0,8.99e-05,2]
[347522287,1735901439239,-1760.94,8.99e-05,2]
[347522288,1735901439247,-500.0,8.99e-05,2]
[347522289,1735901439256,-1496.81,8.99e-05,2]
[347522290,1735901439266,-654.6,8.99e-05,2]
[347522291,1735901439275,-1487.8,8.99e-05,2]
[347522292,1735901439284,-500.0,8.99e-05,2]
[347522293,1735901439294,-1242.27,8.99e-05,2]
[347522294,1735901439303,-500.0,8.99e-05,2]
[347522295,1735901439312,-802.26,8.99e-05,2]
[347522296,1735901439321,-1493.24,8.99e-05,2]
[347522297,1735901439330,-1397.94,8.99e-05,2]
[347522298,1735901439339,-543.45,8.99e-05,2]
[347522299,1735901439349,-648.86,8.99e-05,2]
[347522300,1735901439358,-500.0,8.99e-05,2]
[347522301,1735901439371,-485.7264739,8.99e-05,2]
[347522302,1735901439379,-1854.14,8.99e-05,2]
[347522303,1735901439389,-500.0,8.99e-05,2]
[347522304,1735901439398,-500.0,8.99e-05,2]
[347522305,1735901439407,-1555.76,8.99e-05,2]
[347522306,1735901439416,-500.0,8.99e-05,2]
[347522307,1735901439426,-500.0,8.99e-05,2]
[347522308,1735901439435,-500.0,8.99e-05,2]
[347522309,1735901439445,-500.0,8.99e-05,2]
[347522310,1735901439454,-1118.14,8.99e-05,2]
[347522311,1735901439464,-1692.99,8.99e-05,2]
[347522312,1735901439473,-558.1,8.99e-05,2]
[347522313,1735901439482,-500.0,8.99e-05,2]
[347522314,1735901439492,-249.47908633,8.99e-05,2]
[347522315,1735901439501,-863.24,8.99e-05,2]
[347522316,1735901439510,-500.0,8.99e-05,2]
[347522317,1735901439519,-819.93,8.99e-05,2]
[347522318,1735901439528,-896.93,8.99e-05,2]
[347522319,1735901439537,-500.0,8.99e-05,2]
[347522320,1735901439547,-1880.54,8.99e-05,2]
[347522321,1735901439556,-590.48,8.99e-05,2]
[347522322,1735901439565,-665.58,8.99e-05,2]
[347522323,1735901439575,-1242.97,8.99e-05,2]
[347522324,1735901439586,-500.0,8.99e-05,2]
[347522325,1735901439595,-2052.85,8.99e-05,2]
[347522326,1735901439605,-1065.33,8.99e-05,2]
[347522327,1735901439614,-848.98,8.99e-05,2]
[347522328,1735901439624,-965.54,8.99e-05,2]
[347522329,1735901439633,-2097.78,8.99e-05,2]
[347522330,1735901439643,-1073.42,8.99e-05,2]
[347522331,1735901439651,-1179.01,8.99e-05,2]
[347522332,1735901439660,-1474.9,8.99e-05,2]
[347522333,1735901439669,-2747.16247114,8.99e-05,2]
[347522334,1735901439707,-384.359608,8.99e-05,2]
[347522335,1735901439750,-1709.22792086,8.99e-05,2]
[347522336,1735901439760,-500.0,8.99e-05,2]
[347522337,1735901439769,-571.0,8.99e-05,2]
[347522338,1735901439779,-787.7,8.99e-05,2]
[347522339,1735901439788,-898.99,8.99e-05,2]
[347522340,1735901439797,-500.0,8.99e-05,2]
[347522341,1735901439806,-500.0,8.99e-05,2]
[347522342,1735901439815,-2327.02,8.99e-05,2]
[347522343,1735901439824,-2865.97305414,8.99e-05,2]
[347522344,1735901439835,-372.22790633,8.99e-05,2]
[347522345,1735901439951,-2942.89903953,8.99e-05,2]
[347522346,1735901439960,-3967.93,8.99e-05,2]
[347522347,1735901439970,-500.0,8.99e-05,2]
[347522348,1735901439979,-7982.353721,8.99e-05,2]
[347522349,1735901439987,-500.0,8.99e-05,2]
[347522350,1735901439997,-500.0,8.99e-05,2]
[347522351,1735901440007,-792.46,8.99e-05,2]
[347522352,1735901440017,-6950.35723947,8.99e-05,2]
[347522353,1735901440028,-1703.72990793,8.99e-05,2]
[347522354,1735901440039,-651.249959,8.99e-05,2]
[347522355,1735901440051,-1607.0028936,8.99e-05,2]
[347522356,1735901440060,-5843.73,8.99e-05,2]
[347522357,1735901440070,-1031.36,8.99e-05,2]
[347522358,1735901440079,-3959.50096371,8.99e-05,2]
[347522361,1735901440706,-420.0,8.99e-05,2]
[347522362,1735901440718,-3218.28181629,8.99e-05,2]
[347522363,1735901440728,-1159.44,8.99e-05,2]
[347522364,1735901440738,-465.38231287,8.99e-05,2]
[347522365,1735901441043,-218.82768713,8.99e-05,2]
[347522366,1735901441053,-2731.11,8.99e-05,2]
[347522367,1735901441063,-328.11991784,8.99e-05,2]
[347522368,1735901441075,-1393.86008216,8.99e-05,2]
[347522369,1735901441084,-1115.37,8.99e-05,2]
[347522370,1735901441094,-1843.85,8.99e-05,2]
[347522371,1735901441104,-658.14,8.99e-05,2]
[347522372,1735901441115,-773.72,8.99e-05,2]
[347522373,1735901441125,-1097.92,8.99e-05,2]
[347522374,1735901441134,-2894.2,8.99e-05,2]
[347522375,1735901441143,-1065.79,8.99e-05,2]
[347522376,1735901441153,-1087.99,8.99e-05,2]
[347522377,1735901441163,-500.0,8.99e-05,2]
[347522378,1735901441173,-1902.19,8.99e-05,2]
[347522379,1735901441182,-2367.63,8.99e-05,2]
[347522380,1735901441192,-500.0,8.99e-05,2]
[347522381,1735901441201,-5023.94,8.99e-05,2]
[347522382,1735901441210,-1318.03,8.99e-05,2]
[347522383,1735901441220,-838.98,8.99e-05,2]
[347522384,1735901441230,-2167.79,8.99e-05,2]
[347522385,1735901441241,-500.0,8.99e-05,2]
[347522386,1735901441250,-8299.11,8.99e-05,2]
[347522387,1735901441259,-635.1,8.99e-05,2]
[347522388,1735901441269,-1280.08,8.99e-05,2]
[347522389,1735901441278,-11000.3,8.99e-05,2]
[347522390,1735901441288,-1836.55,8.99e-05,2]
[347522391,1735901441298,-1983.09,8.99e-05,2]
[347522392,1735901441307,-3128.96,8.99e-05,2]
[347522393,1735901441316,-5719.58,8.99e-05,2]
[347522394,1735901441325,-1524.23,8.99e-05,2]
[347522395,1735901441334,-520.56,8.99e-05,2]
[347522396,1735901441344,-4445.46,8.99e-05,2]
[347522397,1735901441353,-500.0,8.99e-05,2]
[347522398,1735901441364,-500.0,8.99e-05,2]
[347522399,1735901441373,-500.0,8.99e-05,2]
[347522400,1735901441382,-1689.99,8.99e-05,2]
[347522401,1735901441391,-1893.11,8.99e-05,2]
[347522402,1735901441400,-500.0,8.99e-05,2]
[347522403,1735901441409,-2434.19,8.99e-05,2]
[347522404,1735901441418,-500.0,8.99e-05,2]
[347522405,1735901441427,-12695.13,8.99e-05,2]
[347522406,1735901441436,-3586.33,8.99e-05,2]
[347522407,1735901441446,-1398.99,8.99e-05,2]
[347522408,1735901441455,-500.0,8.99e-05,2]
[347522409,1735901441464,-500.0,8.99e-05,2]
[347522410,1735901441473,-500.0,8.99e-05,2]
[347522411,1735901441483,-2504.16,8.99e-05,2]
[347522412,1735901441492,-2178.83,8.99e-05,2]
[347522413,1735901441502,-500.0,8.99e-05,2]
[347522414,1735901441511,-1276.49,8.99e-05,2]
[347522415,1735901441520,-1528.55701715,8.99e-05,2]
[347522416,1735901441558,-287.41323734,8.99e-05,2]
[347522417,1735901443119,-3183.97548828,8.99e-05,2]
[347522421,1735901443256,-1058.8,8.904e-05,2]
[347522422,1735901443268,-48.46,8.904e-05,2]
[347522423,1735901443277,-436.86,8.904e-05,2]
[347522424,1735901443286,-387.30999952,8.99e-05,2]
[347522425,1735901443298,-532.50425771,8.99e-05,2]
[347522426,1735901443307,-500.0,8.99e-05,2]
[347522427,1735901443316,-759.25,8.99e-05,2]
[347522428,1735901443326,-500.0,8.991e-05,2]
[347522429,1735901443335,-769.6,8.991e-05,2]
[347522430,1735901443344,-500.68,8.991e-05,2]
[347522431,1735901443361,-616.79,8.991e-05,2]
[347522432,1735901443373,-506.46,8.991e-05,2]
[347522433,1735901443382,-580.73,8.991e-05,2]
[347522434,1735901443391,-630.91,8.991e-05,2]
[347522435,1735901443401,-609.95,8.991e-05,2]
[347522436,1735901443410,-500.0,8.991e-05,2]
[347522437,1735901443419,-1222.01,8.991e-05,2]
[347522438,1735901443429,-500.0,8.991e-05,2]
[347522439,1735901443438,-759.32,8.991e-05,2]
[347522440,1735901443448,-500.0,8.991e-05,2]
[347522441,1735901443457,-2093.38,8.991e-05,2]
[347522442,1735901443467,-500.0,8.991e-05,2]
[347522443,1735901443477,-500.0,8.991e-05,2]
[347522444,1735901443486,-500.0,8.991e-05,2]
[347522445,1735901443495,-548.27906644,8.991e-05,2]
[347522447,1735901443504,-500.0,8.991e-05,2]
[347522449,1735901443514,-500.0,8.991e-05,2]
[347522451,1735901443523,-405.67879935,8.991e-05,2]
[347522453,1735901443534,-94.32120065,8.991e-05,2]
[347522455,1735901443543,-202.97336836,8.991e-05,2]
[347522463,1735901443599,-357.26,8.904e-05,2]
[347522465,1735901443608,-297.02663164,8.991e-05,2]
[347522467,1735901443617,-500.0,8.991e-05,2]
[347522468,1735901443627,-500.0,8.991e-05,2]
[347522469,1735901443636,-439.93402904,8.991e-05,2]
[347522472,1735901446166,-771.63,8.66e-05,2]
[347522473,1735901446177,-500.0,8.988e-05,2]
[347522474,1735901446187,-261.46102002,8.989e-05,2]
[347522475,1735901446198,-500.0,8.99e-05,2]
[347522476,1735901446210,-60.06597096,8.991e-05,2]
[347522477,1735901446219,-596.07,8.991e-05,2]
[347522478,1735901446229,-500.0,8.991e-05,2]
[347522479,1735901446239,-500.0,8.991e-05,2]
[347522480,1735901446251,-500.0,8.991e-05,2]
[347522481,1735901446261,-1183.62,8.991e-05,2]
[347522482,1735901446270,-1423.66,8.991e-05,2]
[347522483,1735901446280,-866.13,8.991e-05,2]
[347522484,1735901446290,-653.7,8.991e-05,2]
[347522485,1735901446299,-438.51525681,8.991e-05,2]
[347522486,1735901446318,-192.55474319,8.991e-05,2]
[347522487,1735901446327,-500.0,8.991e-05,2]
[347522488,1735901446336,-500.0,8.991e-05,2]
[347522489,1735901446345,-500.0,8.991e-05,2]
[347522490,1735901446355,-832.11251271,8.991e-05,2]
[347522491,1735901446380,-54.26748729,8.991e-05,2]
[347522492,1735901446391,-208.87285503,8.991e-05,2]
[347522493,1735901446494,-291.12714497,8.991e-05,2]
[347522494,1735901446504,-737.53,8.991e-05,2]
[347522495,1735901446513,-500.0,8.991e-05,2]
[347522496,1735901446523,-500.0,8.991e-05,2]
[347522497,1735901446532,-500.0,8.991e-05,2]
[347522498,1735901446543,-500.0,8.991e-05,2]
[347522499,1735901446552,-703.9,8.991e-05,2]
[347522500,1735901446561,-500.0,8.991e-05,2]
[347522501,1735901446571,-500.0,8.991e-05,2]
[347522502,1735901446582,-500.0,8.991e-05,2]
[347522503,1735901446591,-500.0,8.991e-05,2]
[347522504,1735901446601,-500.0,8.991e-05,2]
[347522505,1735901446610,-500.0,8.991e-05,2]
[347522506,1735901446621,-500.0,8.991e-05,2]
[347522507,1735901446634,-500.0,8.991e-05,2]
[347522508,1735901446643,-641.91,8.991e-05,2]
[347522509,1735901446653,-702.1,8.991e-05,2]
[347522510,1735901446663,-500.0,8.991e-05,2]
[347522511,1735901446673,-500.0,8.991e-05,2]
[347522512,1735901446683,-500.0,8.991e-05,2]
[347522513,1735901446692,-500.0,8.991e-05,2]
[347522514,1735901446702,-500.0,8.991e-05,2]
[347522515,1735901446711,-3489.71,8.991e-05,2]
[347522516,1735901446721,-500.0,8.991e-05,2]
[347522517,1735901446731,-722.09,8.991e-05,2]
[347522518,1735901446740,-500.0,8.991e-05,2]
[347522519,1735901446749,-500.0,8.991e-05,2]
[347522520,1735901446759,-500.0,8.991e-05,2]
[347522521,1735901446770,-500.0,8.991e-05,2]
[347522522,1735901446779,-540.01,8.991e-05,2]
[347522523,1735901446788,-308.81021444,8.991e-05,2]
[347522524,1735901446798,-500.0,8.991e-05,2]
[347522525,1735901446807,-500.0,8.991e-05,2]
[347522526,1735901446816,-666.83,8.991e-05,2]
[347522527,1735901446826,-605.32,8.991e-05,2]
[347522528,1735901446835,-500.0,8.991e-05,2]
[347522529,1735901446845,-3390.81,8.991e-05,2]
[347522530,1735901446855,-500.0,8.991e-05,2]
[347522531,1735901446864,-1199.16,8.991e-05,2]
[347522532,1735901446876,-345.88867811,8.991e-05,2]
[347522533,1735901446885,-500.0,8.991e-05,2]
[347522534,1735901446895,-500.0,8.991e-05,2]
[347522535,1735901446904,-500.0,8.991e-05,2]
[347522536,1735901446914,-500.0,8.991e-05,2]
[347522537,1735901446923,-223.54347374,8.991e-05,2]
[347522538,1735901446933,-500.0,8.991e-05,2]
[347522539,1735901446943,-544.69,8.991e-05,2]
[347522540,1735901446952,-344.81381749,8.991e-05,2]
[347522541,1735901538708,10000.0,0.00015219,29]
[347522542,1735901547498,10000.0,0.00015219,29]
[347522543,1735901571882,10000.0,0.00015219,29]
[347522544,1735901581726,4526.0,0.00015219,29]
[347522545,1735901613326,-250.0,8.237e-05,2]
[347522546,1735901613349,-1000.0,8.9e-05,2]
[347522547,1735901613371,-1373.0,8.9e-05,2]
[347522548,1735901613395,-2024.48,8.988e-05,2]
[347522549,1735901613417,-629.51,8.988e-05,2]
[347522550,1735901613733,-4998.61,8.988e-05,2]
[347522551,1735901613757,-1278.93,8.988e-05,2]
[347522552,1735901613785,-1401.61,8.988e-05,2]
[347522553,1735901613808,-500.0,8.988e-05,2]
[347522554,1735901613832,-1686.01,8.988e-05,2]
[347522555,1735901613857,-1443.01,8.988e-05,2]
[347522556,1735901613879,-500.0,8.988e-05,2]
[347522557,1735901613902,-500.0,8.988e-05,2]
[347522558,1735901613924,-627.33,8.988e-05,2]
[347522559,1735901613951,-833.05,8.988e-05,2]
[347522560,1735901613974,-6162.31,8.988e-05,2]
[347522561,1735901613997,-500.0,8.988e-05,2]
[347522562,1735901614023,-1687.57,8.988e-05,2]
[347522563,1735901614047,-2878.39,8.988e-05,2]
[347522564,1735901614069,-3225.23,8.988e-05,2]
[347522565,1735901614092,-1434.44,8.988e-05,2]
[347522566,1735901614115,-6030.34,8.988e-05,2]
[347522567,1735901614139,-1425.81,8.988e-05,2]
[347522568,1735901614163,-11960.37,8.988e-05,2]
[347522569,1735901614187,-1431.02,8.988e-05,2]
[347522570,1735901614209,-500.0,8.988e-05,2]
[347522571,1735901614230,-1190.51,8.988e-05,2]
[347522572,1735901614252,-876.84,8.988e-05,2]
[347522573,1735901614276,-186.9738166,8.988e-05,2]
[347522574,1735901614298,-1865.37,8.988e-05,2]
[347522575,1735901614319,-520.8,8.988e-05,2]
[347522576,1735901614341,-768.83,8.988e-05,2]
[347522577,1735901614365,-500.0,8.988e-05,2]
[347522578,1735901614386,-4010.13,8.988e-05,2]
[347522579,1735901614409,-898.62,8.988e-05,2]
[347522580,1735901614432,-2539.73,8.988e-05,2]
[347522581,1735901614455,-500.0,8.988e-05,2]
[347522582,1735901614476,-1336.52,8.988e-05,2]
[347522583,1735901614499,-1339.7,8.988e-05,2]
[347522584,1735901614520,-500.0,8.988e-05,2]
[347522585,1735901614541,-9139.83,8.988e-05,2]
[347522586,1735901614563,-1971.92,8.988e-05,2]
[347522587,1735901614586,-4150.1,8.988e-05,2]
[347522588,1735901614608,-621.82,8.988e-05,2]
[347522589,1735901614629,-500.0,8.988e-05,2]
[347522590,1735901614650,-1776.88,8.988e-05,2]
[347522591,1735901614672,-5428.19,8.988e-05,2]
[347522592,1735901614693,-500.0,8.988e-05,2]
[347522593,1735901614715,-8745.73,8.988e-05,2]
[347522594,1735901614736,-4796.38,8.988e-05,2]
[347522595,1735901614757,-1071.55,8.988e-05,2]
[347522596,1735901614783,-500.0,8.989e-05,2]
[347522597,1735901614808,-3802.6,8.989e-05,2]
[347522598,1735901614828,-737.54,8.989e-05,2]
[347522599,1735901614850,-372.16324658,8.989e-05,2]
[347522600,1735901614872,-591.09,8.989e-05,2]